fUSD/lending_fUSD_20260515
["ID","MTS","AMOUNT","RATE_DAILY","PERIOD"]
[422319630,1778819446000,-2080.17592889,0.00018996,2]
[422319629,1778819446000,-736.86247573,0.00018849,2]
[422319631,1778819446000,-2171.07543261,0.00019,2]
[422319632,1778819446000,-626.35332816,0.00019,2]
[422319633,1778819446000,-151.0,0.00019178,2]
[422319634,1778819446000,-151.0,0.00019178,2]
[422319635,1778819446000,-321.59376266,0.00019263,21]
[422319636,1778819446000,-2157.14243826,0.00019544,2]
[422319642,1778819446000,-150.0,0.000196,2]
[422319638,1778819446000,-150.0,0.000196,2]
[422319640,1778819446000,-150.0,0.000196,2]
[422319637,1778819446000,-150.0,0.000196,2]
[422319639,1778819446000,-150.0,0.000196,2]
[422319641,1778819446000,-150.0,0.000196,2]
[422319651,1778819446000,-7076.92922363,0.0002,2]
[422319645,1778819446000,-207.6876817,0.00019732,30]
[422319643,1778819446000,-184.78729891,0.000196,2]
[422319647,1778819446000,-2004.47286217,0.000199,3]
[422319648,1778819446000,-300.0,0.00019999,2]
[422319646,1778819446000,-169.14,0.00019869,2]
[422319644,1778819446000,-150.0,0.00019732,30]
[422319653,1778819446000,-178.68510359,0.0002,2]
[422319652,1778819446000,-1552.88182591,0.0002,2]
[422319650,1778819446000,-2000.0,0.0002,2]
[422319649,1778819446000,-300.0,0.00019999,2]
[422319655,1778819446000,-3950.0,0.0002,2]
[422319661,1778819446000,-152.0,0.0002,2]
[422319695,1778819446000,-22955.34834209,0.000207,2]
[422319701,1778819446000,-2082.0,0.00021,2]
[422319697,1778819446000,-2602.9667233,0.000209,30]
[422319733,1778819446000,-750.0,0.0002185,2]
[422319731,1778819446000,-750.0,0.0002185,2]
[422319735,1778819446000,-750.0,0.0002185,2]
[422319736,1778819446000,-750.0,0.0002185,2]
[422319734,1778819446000,-750.0,0.0002185,2]
[422319732,1778819446000,-750.0,0.0002185,2]
[422319739,1778819446000,-150.0,0.0002185,2]
[422319738,1778819446000,-521.0,0.0002185,2]
[422319749,1778819446000,-1350.0,0.00021851,2]
[422319741,1778819446000,-150.0,0.0002185,2]
[422319740,1778819446000,-150.0,0.0002185,2]
[422319744,1778819446000,-150.0,0.0002185,2]
[422319746,1778819446000,-150.0,0.0002185,2]
[422319742,1778819446000,-150.0,0.0002185,2]
[422319748,1778819446000,-1350.0,0.00021851,2]
[422319743,1778819446000,-150.0,0.0002185,2]
[422319745,1778819446000,-150.0,0.0002185,2]
[422319747,1778819446000,-210.0,0.0002185,2]
[422319750,1778819446000,-1350.0,0.00021851,2]
[422319751,1778819446000,-1350.0,0.00021851,2]
[422319752,1778819446000,-1350.0,0.00021851,2]
[422319696,1778819446000,-736.86247573,0.00020866,2]
[422319756,1778819446000,-1350.0,0.00021851,2]
[422319755,1778819446000,-1350.0,0.00021851,2]
[422319753,1778819446000,-1350.0,0.00021851,2]
[422319757,1778819446000,-1020.0,0.00021851,2]
[422319758,1778819446000,-500.0,0.00021852,2]
[422319730,1778819446000,-750.0,0.0002185,2]
[422319729,1778819446000,-750.0,0.0002185,2]
[422319754,1778819446000,-1350.0,0.00021851,2]
[422319727,1778819446000,-150.0,0.00021572,30]
[422319737,1778819446000,-750.0,0.0002185,2]
[422319694,1778819446000,-300.0,0.00020699,2]
[422319698,1778819446000,-1208.66064248,0.00021,2]
[422319699,1778819446000,-199.48213156,0.00021,2]
[422319702,1778819446000,-196.0,0.00021,2]
[422319710,1778819446000,-152.0,0.00021,2]
[422319704,1778819446000,-730.0,0.00021,2]
[422319703,1778819446000,-157.0,0.00021,2]
[422319707,1778819446000,-218.0,0.00021,2]
[422319705,1778819446000,-365.0,0.00021,2]
[422319709,1778819446000,-356.0,0.00021,2]
[422319708,1778819446000,-1763.0,0.00021,2]
[422319706,1778819446000,-158.0,0.00021,2]
[422319700,1778819446000,-3409.5951271,0.00021,7]
[422319712,1778819446000,-321.0,0.00021,2]
[422319723,1778819446000,-151.0,0.00021283,2]
[422319726,1778819446000,-9912.14558472,0.000215,2]
[422319718,1778819446000,-159.0,0.00021,2]
[422319716,1778819446000,-159.0,0.00021,2]
[422319720,1778819446000,-1589.58204729,0.00021188,2]
[422319721,1778819446000,-355.73,0.00021273,2]
[422319715,1778819446000,-159.0,0.00021,2]
[422319724,1778819446000,-440.695231,0.00021408,2]
[422319719,1778819446000,-498.32,0.00021097,2]
[422319713,1778819446000,-1612.0,0.00021,2]
[422319711,1778819446000,-500.0,0.00021,2]
[422319728,1778819446000,-247.43075745,0.00021572,30]
[422319717,1778819446000,-159.0,0.00021,2]
[422319787,1778819447000,-800.0,0.00021918,2]
[422319789,1778819447000,-800.0,0.00021918,2]
[422319784,1778819447000,-800.0,0.00021918,2]
[422319788,1778819447000,-800.0,0.00021918,2]
[422319786,1778819447000,-800.0,0.00021918,2]
[422319790,1778819447000,-800.0,0.00021918,2]
[422319793,1778819447000,-2097.2517538,0.00021918,2]
[422319791,1778819447000,-203.69987345,0.00021918,2]
[422319796,1778819447000,-3631.0,0.00021918,2]
[422319797,1778819447000,-625.0,0.00021918,2]
[422319808,1778819447000,-356.0,0.00022,2]
[422319794,1778819447000,-1270.0,0.00021918,2]
[422319795,1778819447000,-1223.0,0.00021918,2]
[422319798,1778819447000,-11777.14924158,0.00022,4]
[422319800,1778819447000,-196.0,0.00022,2]
[422319799,1778819447000,-2082.0,0.00022,2]
[422319809,1778819447000,-152.0,0.00022,2]
[422319801,1778819447000,-157.0,0.00022,2]
[422319802,1778819447000,-730.0,0.00022,2]
[422319778,1778819447000,-151.0,0.00021918,2]
[422319805,1778819447000,-450.0,0.00022,2]
[422319792,1778819447000,-150.0,0.00021918,2]
[422319780,1778819447000,-800.0,0.00021918,2]
[422319770,1778819447000,-900.0,0.00021852,2]
[422319777,1778819447000,-798.0,0.00021852,2]
[422319810,1778819447000,-321.0,0.00022,2]
[422319761,1778819447000,-500.0,0.00021852,2]
[422319759,1778819447000,-500.0,0.00021852,2]
[422319760,1778819447000,-500.0,0.00021852,2]
[422319763,1778819447000,-500.0,0.00021852,2]
[422319773,1778819447000,-900.0,0.00021852,2]
[422319762,1778819447000,-500.0,0.00021852,2]
[422319765,1778819447000,-500.0,0.00021852,2]
[422319764,1778819447000,-500.0,0.00021852,2]
[422319766,1778819447000,-500.0,0.00021852,2]
[422319783,1778819447000,-800.0,0.00021918,2]
[422319772,1778819447000,-900.0,0.00021852,2]
[422319769,1778819447000,-900.0,0.00021852,2]
[422319768,1778819447000,-900.0,0.00021852,2]
[422319771,1778819447000,-900.0,0.00021852,2]
[422319775,1778819447000,-900.0,0.00021852,2]
[422319785,1778819447000,-800.0,0.00021918,2]
[422319774,1778819447000,-900.0,0.00021852,2]
[422319776,1778819447000,-900.0,0.00021852,2]
[422319782,1778819447000,-800.0,0.00021918,2]
[422319781,1778819447000,-800.0,0.00021918,2]
[422319779,1778819447000,-5000.0,0.00021918,2]
[422319767,1778819447000,-159.0,0.00021852,2]
[422319807,1778819447000,-1763.0,0.00022,2]
[422319803,1778819447000,-365.0,0.00022,2]
[422319806,1778819447000,-218.0,0.00022,2]
[422319832,1778819447000,-365.0,0.00023,2]
[422319833,1778819447000,-158.0,0.00023,2]
[422319831,1778819447000,-730.0,0.00023,2]
[422319839,1778819447000,-321.0,0.00023,2]
[422319840,1778819447000,-1612.0,0.00023,2]
[422319841,1778819447000,-159.0,0.00023017,3]
[422319842,1778819447000,-163.03964696,0.000232,2]
[422319845,1778819447000,-150.116,0.00023431,2]
[422319846,1778819447000,-250.0,0.00023431,2]
[422319844,1778819447000,-1038.15962799,0.00023288,2]
[422319834,1778819447000,-1238.59,0.00023,7]
[422319847,1778819447000,-150.199,0.00023431,2]
[422319849,1778819447000,-150.0,0.00023431,2]
[422319850,1778819447000,-150.0,0.00023431,2]
[422319851,1778819447000,-150.08,0.00023431,2]
[422319853,1778819447000,-1038.15962799,0.00023973,2]
[422319852,1778819447000,-150.0,0.00023671,2]
[422319854,1778819447000,-1037.05643006,0.00024,2]
[422319855,1778819447000,-10593.99083307,0.00024,14]
[422319856,1778819447000,-3600.0,0.00024,2]
[422319858,1778819447000,-2082.0,0.00024,2]
[422319804,1778819447000,-158.0,0.00022,2]
[422319848,1778819447000,-150.088,0.00023431,2]
[422319835,1778819447000,-218.0,0.00023,2]
[422319843,1778819447000,-174.08,0.00023254,2]
[422319828,1778819447000,-196.0,0.00023,2]
[422319830,1778819447000,-169.0,0.00023,2]
[422319813,1778819447000,-500.0,0.00022252,2]
[422319811,1778819447000,-1612.0,0.00022,2]
[422319812,1778819447000,-307.32,0.00022064,2]
[422319815,1778819447000,-286.03920346,0.000224,4]
[422319814,1778819447000,-1129.2,0.00022353,2]
[422319816,1778819447000,-1907.24127394,0.00022445,2]
[422319817,1778819447000,-240.55518668,0.00022445,2]
[422319818,1778819447000,-308.86950042,0.00022499,2]
[422319819,1778819447000,-35997.98697304,0.000225,2]
[422319822,1778819447000,-4754.64491921,0.00023,2]
[422319857,1778819447000,-1253.96491391,0.00024,2]
[422319821,1778819447000,-736.86247573,0.00022883,2]
[422319820,1778819447000,-1023.24529803,0.00022603,2]
[422319838,1778819447000,-155.0,0.00023,2]
[422319826,1778819447000,-208.51754887,0.00023,117]
[422319837,1778819447000,-356.0,0.00023,2]
[422319836,1778819447000,-1763.0,0.00023,2]
[422319829,1778819447000,-548.0,0.00023,30]
[422319824,1778819447000,-311306.00097258,0.00023,2]
[422319823,1778819447000,-1000.0,0.00023,14]
[422319825,1778819447000,-1012.2595611,0.00023,2]
[422319827,1778819447000,-2082.0,0.00023,2]
[422319869,1778819448000,-857.0,0.00024055,10]
[422319887,1778819448000,-774.0,0.00024715,10]
[422319876,1778819448000,-190.919822,0.00024658,2]
[422319877,1778819448000,-190.919822,0.00024658,2]
[422319871,1778819448000,-1129.2,0.00024324,2]
[422319875,1778819448000,-200.0,0.000245,2]
[422319888,1778819448000,-200.0,0.00024745,2]
[422319870,1778819448000,-2600.05414747,0.0002421,2]
[422319874,1778819448000,-579.0,0.00024397,2]
[422319868,1778819448000,-1612.0,0.00024,2]
[422319866,1778819448000,-356.0,0.00024,2]
[422319873,1778819448000,-2421.0,0.00024385,10]
[422319864,1778819448000,-218.0,0.00024,2]
[422319865,1778819448000,-1763.0,0.00024,2]
[422319867,1778819448000,-321.0,0.00024,2]
[422319872,1778819448000,-152.0,0.00024354,3]
[422319862,1778819448000,-159.0,0.00024,2]
[422319861,1778819448000,-365.0,0.00024,2]
[422319859,1778819448000,-196.0,0.00024,2]
[422319860,1778819448000,-730.0,0.00024,2]
[422319886,1778819448000,-366.50020212,0.00024658,2]
[422319863,1778819448000,-500.0,0.00024,2]
[422319882,1778819448000,-151.0,0.00024658,2]
[422319881,1778819448000,-1000.0,0.00024658,2]
[422319885,1778819448000,-151.0,0.00024658,2]
[422319878,1778819448000,-190.919822,0.00024658,2]
[422319905,1778819448000,-3082.86914386,0.00025,2]
[422319904,1778819448000,-618.72107897,0.00025,2]
[422319902,1778819448000,-1808.1365653,0.00025,2]
[422319895,1778819448000,-500.0,0.00024932,2]
[422319898,1778819448000,-481.0,0.00024997,2]
[422319899,1778819448000,-1128.44306839,0.00025,2]
[422319896,1778819448000,-579.0,0.00024959,2]
[422319901,1778819448000,-493.05734925,0.00025,60]
[422319900,1778819448000,-210.19393194,0.00025,2]
[422319894,1778819448000,-625.0,0.00024918,2]
[422319903,1778819448000,-540.0,0.00025,2]
[422319890,1778819448000,-736.86247573,0.000249,2]
[422319883,1778819448000,-151.0,0.00024658,2]
[422319897,1778819448000,-200.0,0.00024992,2]
[422319879,1778819448000,-190.919822,0.00024658,2]
[422319884,1778819448000,-151.0,0.00024658,2]
[422319906,1778819448000,-8683.84497805,0.00025,7]
[422319893,1778819448000,-3631.0,0.00024918,2]
[422319889,1778819448000,-500.0,0.00024849,2]
[422319891,1778819448000,-1270.0,0.00024918,2]
[422319880,1778819448000,-548.76,0.00024658,2]
[422319892,1778819448000,-1223.0,0.00024918,2]
[422319927,1778819449000,-4974.92781148,0.00025,2]
[422319928,1778819449000,-382.79799207,0.00025,2]
[422319931,1778819449000,-214.997284,0.00025,7]
[422319929,1778819449000,-225.0,0.00025,2]
[422319932,1778819449000,-375.0,0.00025,2]
[422319926,1778819449000,-740.1757212,0.00025,2]
[422319930,1778819449000,-1771.44760533,0.00025,2]
[422319935,1778819449000,-171.12,0.00025169,30]
[422319937,1778819449000,-1238.59,0.000252,7]
[422319938,1778819449000,-575.0,0.00025232,2]
[422319940,1778819449000,-4974.92781148,0.000253,2]
[422319942,1778819449000,-152.0,0.00025364,4]
[422319936,1778819449000,-171.12,0.00025169,30]
[422319944,1778819449000,-735.0,0.00025446,2]
[422319946,1778819449000,-200.0,0.00025495,2]
[422319943,1778819449000,-1381.61488087,0.00025397,2]
[422319933,1778819449000,-325.0,0.00025,2]
[422319945,1778819449000,-1021.448815,0.0002548,14]
[422319941,1778819449000,-1038.15962799,0.00025342,2]
[422319939,1778819449000,-200.0,0.00025242,2]
[422319913,1778819449000,-89.9615065,0.00013698,2]
[422319923,1778819449000,-5990.74911722,0.00025,2]
[422319948,1778819449000,-579.0,0.00025521,3]
[422319907,1778819449000,-1822.65742049,0.00025,7]
[422319908,1778819449000,-222.454635,0.00017808,2]
[422319910,1778819449000,-496.19290314,0.00025,7]
[422319911,1778819449000,-618.6790189,0.00025,7]
[422319909,1778819449000,-218.964131,0.00025,7]
[422319912,1778819449000,-410.0384935,0.00013698,2]
[422319915,1778819449000,-73.41116761,0.00013698,2]
[422319925,1778819449000,-214.0,0.00025,2]
[422319914,1778819449000,-426.58883239,0.00013698,2]
[422319918,1778819449000,-500.0,0.00013698,2]
[422319917,1778819449000,-500.0,0.00013698,2]
[422319920,1778819449000,-581.90645318,0.00025,7]
[422319922,1778819449000,-2127.31504137,0.00025,2]
[422319921,1778819449000,-92571.37205269,0.00025,7]
[422319919,1778819449000,-616.95700799,0.00025,7]
[422319924,1778819449000,-2099.0,0.00025,2]
[422319934,1778819449000,-1613.0,0.00025,2]
[422319916,1778819449000,-500.0,0.00013698,2]
[422319958,1778819449000,-3027.26,0.00025786,2]
[422319970,1778819449000,-4974.92781148,0.00026,2]
[422319947,1778819449000,-4974.92781148,0.000255,2]
[422319975,1778819449000,-150.0,0.00026027,2]
[422319986,1778819449000,-1610.79,0.00026034,2]
[422319985,1778819449000,-477.27,0.0002603,2]
[422319974,1778819449000,-1038.15962799,0.00026027,2]
[422319978,1778819449000,-250.0,0.00026027,2]
[422319977,1778819449000,-229.0,0.00026027,2]
[422319983,1778819449000,-477.22,0.0002603,2]
[422319980,1778819449000,-150.0,0.00026027,2]
[422319969,1778819449000,-219.25916964,0.00026,2]
[422319979,1778819449000,-398.0,0.00026027,2]
[422319976,1778819449000,-288.0,0.00026027,2]
[422319981,1778819449000,-208.0,0.00026027,2]
[422319988,1778819449000,-1611.64,0.00026034,2]
[422319989,1778819449000,-601.82,0.00026058,7]
[422319990,1778819449000,-477.22,0.00026058,7]
[422319987,1778819449000,-1075.51,0.00026034,2]
[422319991,1778819449000,-601.85,0.00026058,7]
[422319950,1778819449000,-163.137635,0.00025607,14]
[422319984,1778819449000,-601.85,0.0002603,2]
[422319966,1778819449000,-40394.28604079,0.0002589,5]
[422319982,1778819449000,-601.82,0.0002603,2]
[422319965,1778819449000,-528.92,0.00025855,4]
[422319949,1778819449000,-150.0,0.00025565,2]
[422319968,1778819449000,-4581.1498201,0.00026,2]
[422319959,1778819449000,-355.73,0.00025786,2]
[422319951,1778819449000,-5364.0,0.000257,7]
[422319953,1778819449000,-171.12,0.00025717,30]
[422319955,1778819449000,-500.0,0.0002578,2]
[422319952,1778819449000,-159.0,0.00025706,3]
[422319954,1778819449000,-171.12,0.00025717,30]
[422319956,1778819449000,-477.32,0.00025786,2]
[422319957,1778819449000,-779.05,0.00025786,2]
[422319962,1778819449000,-214.997284,0.000258,7]
[422319971,1778819449000,-550.0,0.00026,2]
[422319964,1778819449000,-500.0,0.00025855,4]
[422319972,1778819449000,-5364.0,0.00026,7]
[422319973,1778819449000,-1006.92,0.00026,2]
[422319963,1778819449000,-500.0,0.00025855,4]
[422319961,1778819449000,-4974.92781148,0.000258,2]
[422319960,1778819449000,-711.2591769,0.00025789,7]
[422319967,1778819449000,-608.59437514,0.0002599,2]
[422320017,1778819450000,-282.491738,0.00026144,2]
[422320036,1778819450000,-405.890077,0.00026202,2]
[422320032,1778819450000,-151.0,0.00026177,2]
[422320025,1778819450000,-477.22,0.00026173,30]
[422320018,1778819450000,-601.85,0.00026144,7]
[422320016,1778819450000,-282.491738,0.00026144,2]
[422320019,1778819450000,-151.0,0.00026144,2]
[422320015,1778819450000,-151.0,0.00026144,2]
[422320027,1778819450000,-477.27,0.00026173,30]
[422320026,1778819450000,-601.85,0.00026173,7]
[422320030,1778819450000,-1611.64,0.00026176,7]
[422320039,1778819450000,-405.890077,0.00026202,2]
[422320031,1778819450000,-151.0,0.00026177,2]
[422320029,1778819450000,-1075.51,0.00026176,7]
[422320033,1778819450000,-151.0,0.00026177,2]
[422320034,1778819450000,-238.45845447,0.00026189,30]
[422320035,1778819450000,-151.0,0.00026202,2]
[422320038,1778819450000,-405.890077,0.00026202,2]
[422320037,1778819450000,-405.890077,0.00026202,2]
[422320040,1778819450000,-524.970701,0.00026202,2]
[422320042,1778819450000,-524.970701,0.00026202,2]
[422320043,1778819450000,-524.970701,0.00026202,2]
[422320013,1778819450000,-282.491738,0.00026144,2]
[422320028,1778819450000,-1610.79,0.00026176,7]
[422320012,1778819450000,-477.22,0.00026144,7]
[422319992,1778819450000,-477.27,0.00026058,7]
[422320014,1778819450000,-282.491738,0.00026144,2]
[422320041,1778819450000,-524.970701,0.00026202,2]
[422319998,1778819450000,-477.22,0.00026087,30]
[422319994,1778819450000,-1075.51,0.00026062,7]
[422319995,1778819450000,-1611.64,0.00026062,7]
[422319993,1778819450000,-1610.79,0.00026062,7]
[422319999,1778819450000,-601.85,0.00026087,2]
[422319997,1778819450000,-601.82,0.00026087,2]
[422319996,1778819450000,-579.0,0.00026082,3]
[422320000,1778819450000,-477.27,0.00026087,30]
[422320001,1778819450000,-1610.79,0.0002609,2]
[422320003,1778819450000,-1611.64,0.0002609,2]
[422320021,1778819450000,-1610.79,0.00026147,7]
[422320009,1778819450000,-1075.51,0.00026119,2]
[422320011,1778819450000,-601.82,0.00026144,7]
[422320004,1778819450000,-601.82,0.00026116,2]
[422320002,1778819450000,-1075.51,0.0002609,2]
[422320006,1778819450000,-601.85,0.00026116,2]
[422320008,1778819450000,-1610.79,0.00026119,2]
[422320007,1778819450000,-477.27,0.00026116,2]
[422320005,1778819450000,-477.22,0.00026116,2]
[422320020,1778819450000,-477.27,0.00026144,7]
[422320022,1778819450000,-1075.51,0.00026147,7]
[422320023,1778819450000,-1611.64,0.00026147,7]
[422320024,1778819450000,-601.82,0.00026173,7]
[422320010,1778819450000,-1611.64,0.00026119,2]
[422320045,1778819450000,-464.959914,0.00026202,2]
[422320057,1778819450000,-601.85,0.00026202,2]
[422320049,1778819450000,-654.327165,0.00026202,2]
[422320074,1778819450000,-1075.51,0.00026233,7]
[422320078,1778819450000,-477.22,0.00026259,30]
[422320076,1778819450000,-150.0,0.00026254,2]
[422320079,1778819450000,-601.85,0.00026259,2]
[422320077,1778819450000,-601.82,0.00026259,2]
[422320075,1778819450000,-1611.64,0.00026233,7]
[422320082,1778819450000,-1075.51,0.00026261,2]
[422320081,1778819450000,-1610.79,0.00026261,2]
[422320080,1778819450000,-477.27,0.00026259,30]
[422320085,1778819450000,-151.0,0.00026264,2]
[422320084,1778819450000,-151.0,0.00026264,2]
[422320087,1778819450000,-171.12,0.00026265,30]
[422320094,1778819450000,-1075.51,0.0002629,2]
[422320090,1778819450000,-477.22,0.00026288,2]
[422320091,1778819450000,-601.85,0.00026288,2]
[422320086,1778819450000,-151.0,0.00026264,2]
[422320092,1778819450000,-477.27,0.00026288,2]
[422320088,1778819450000,-171.12,0.00026265,30]
[422320089,1778819450000,-601.82,0.00026288,2]
[422320095,1778819450000,-1611.64,0.0002629,2]
[422320097,1778819450000,-152.0,0.00026295,7]
[422320096,1778819450000,-152.0,0.00026295,7]
[422320048,1778819450000,-464.959914,0.00026202,2]
[422320072,1778819450000,-477.27,0.0002623,7]
[422320083,1778819450000,-1611.64,0.00026261,2]
[422320093,1778819450000,-1610.79,0.0002629,2]
[422320069,1778819450000,-601.82,0.0002623,7]
[422320073,1778819450000,-1610.79,0.00026233,7]
[422320046,1778819450000,-464.959914,0.00026202,2]
[422320047,1778819450000,-464.959914,0.00026202,2]
[422320044,1778819450000,-601.82,0.00026202,2]
[422320050,1778819450000,-654.327165,0.00026202,2]
[422320052,1778819450000,-654.327165,0.00026202,2]
[422320056,1778819450000,-231.750592,0.00026202,2]
[422320051,1778819450000,-654.327165,0.00026202,2]
[422320054,1778819450000,-151.0,0.00026202,2]
[422320055,1778819450000,-477.22,0.00026202,2]
[422320098,1778819450000,-1129.2,0.00026296,2]
[422320058,1778819450000,-477.27,0.00026202,2]
[422320053,1778819450000,-151.0,0.00026202,2]
[422320060,1778819450000,-1075.51,0.00026204,2]
[422320066,1778819450000,-151.0,0.00026205,2]
[422320071,1778819450000,-601.85,0.0002623,7]
[422320067,1778819450000,-151.0,0.00026205,2]
[422320065,1778819450000,-151.0,0.00026205,2]
[422320070,1778819450000,-477.22,0.0002623,7]
[422320062,1778819450000,-151.0,0.00026205,2]
[422320064,1778819450000,-151.0,0.00026205,2]
[422320063,1778819450000,-151.0,0.00026205,2]
[422320061,1778819450000,-1611.64,0.00026204,2]
[422320059,1778819450000,-1610.79,0.00026204,2]
[422320068,1778819450000,-151.0,0.00026205,2]
[422320141,1778819451000,-1611.64,0.00026404,7]
[422320134,1778819451000,-601.82,0.00026403,7]
[422320139,1778819451000,-1610.79,0.00026404,7]
[422320138,1778819451000,-1080.81,0.00026404,7]
[422320136,1778819451000,-601.85,0.00026403,7]
[422320129,1778819451000,-1611.64,0.00026375,2]
[422320135,1778819451000,-477.22,0.00026403,7]
[422320133,1778819451000,-27847.7521473,0.000264,2]
[422320125,1778819451000,-477.27,0.00026374,2]
[422320126,1778819451000,-152.0,0.00026375,5]
[422320142,1778819451000,-601.82,0.00026431,2]
[422320137,1778819451000,-477.27,0.00026403,7]
[422320143,1778819451000,-477.22,0.00026431,30]
[422320150,1778819451000,-150.0,0.00026431,2]
[422320144,1778819451000,-601.85,0.00026431,2]
[422320146,1778819451000,-150.0,0.00026431,2]
[422320155,1778819451000,-1611.64,0.00026432,2]
[422320148,1778819451000,-150.0,0.00026431,2]
[422320156,1778819451000,-300.0,0.00026433,30]
[422320147,1778819451000,-150.0,0.00026431,2]
[422320154,1778819451000,-1075.51,0.00026432,2]
[422320153,1778819451000,-1610.79,0.00026432,2]
[422320145,1778819451000,-477.27,0.00026431,30]
[422320152,1778819451000,-150.0,0.00026431,2]
[422320149,1778819451000,-150.0,0.00026431,2]
[422320158,1778819451000,-300.0,0.00026433,30]
[422320130,1778819451000,-1080.81,0.00026376,2]
[422320140,1778819451000,-1075.51,0.00026404,7]
[422320121,1778819451000,-440.695231,0.00026349,14]
[422320106,1778819451000,-1611.64,0.00026318,7]
[422320127,1778819451000,-1610.79,0.00026375,2]
[422320104,1778819451000,-1610.79,0.00026318,7]
[422320107,1778819451000,-190.919822,0.00026322,2]
[422320105,1778819451000,-1075.51,0.00026318,7]
[422320162,1778819451000,-601.82,0.0002646,2]
[422320101,1778819451000,-477.22,0.00026317,7]
[422320100,1778819451000,-601.82,0.00026317,7]
[422320099,1778819451000,-4974.92781148,0.000263,2]
[422320103,1778819451000,-477.27,0.00026317,7]
[422320102,1778819451000,-601.85,0.00026317,7]
[422320108,1778819451000,-190.919822,0.00026322,2]
[422320113,1778819451000,-152.295406,0.00026323,2]
[422320109,1778819451000,-190.919822,0.00026322,2]
[422320112,1778819451000,-190.919822,0.00026322,2]
[422320110,1778819451000,-152.0,0.00026322,7]
[422320111,1778819451000,-152.0,0.00026322,7]
[422320115,1778819451000,-477.22,0.00026345,30]
[422320116,1778819451000,-601.85,0.00026345,7]
[422320119,1778819451000,-1075.51,0.00026347,7]
[422320118,1778819451000,-1610.79,0.00026347,7]
[422320114,1778819451000,-601.82,0.00026345,7]
[422320117,1778819451000,-477.27,0.00026345,30]
[422320124,1778819451000,-601.85,0.00026374,2]
[422320132,1778819451000,-1381.61488087,0.00026397,2]
[422320128,1778819451000,-1075.51,0.00026375,2]
[422320123,1778819451000,-477.22,0.00026374,2]
[422320120,1778819451000,-1611.64,0.00026347,7]
[422320131,1778819451000,-200.0,0.0002639,20]
[422320122,1778819451000,-601.82,0.00026374,2]
[422320160,1778819451000,-433.0,0.00026433,30]
[422320151,1778819451000,-150.0,0.00026431,2]
[422320161,1778819451000,-1080.81,0.00026433,2]
[422320194,1778819451000,-4195.0,0.00026528,2]
[422320193,1778819451000,-517.0,0.00026519,30]
[422320204,1778819451000,-1080.86,0.00026575,7]
[422320200,1778819451000,-601.85,0.00026546,2]
[422320205,1778819451000,-602.01,0.00026575,7]
[422320197,1778819451000,-1610.79,0.00026546,2]
[422320198,1778819451000,-1075.51,0.00026546,2]
[422320203,1778819451000,-252.10274386,0.00026575,2]
[422320201,1778819451000,-477.27,0.00026546,2]